[Event "French-ch U16-U18 2024"]
[Site "Agen"]
[Date "2024.04.18"]
[Round "6.12"]
[White "Milojevic-Daim, Lola-Shaina"]
[Black "Berezovsky, Fiorina"]
[Result "0-1"]
[ECO "D00"]
[WhiteElo "1867"]
[BlackElo "1848"]
[Annotator "NA RC COMBH"]
[PlyCount "126"]
[EventDate "2024.04.14"]
[EventType "swiss"]
[EventCountry "FRA"]
[SourceTitle "playchess.com"]
[Source "ChessBase"]
[SourceQuality "1"]
[TimeControl "5400+30"]

1. d4 {[%emt 0:00:15]} d5 {[%emt 0:00:28]} 2. Nc3 {[%emt 0:00:11]} Nf6 {[%emt 0:01:21]} 3. Bf4 {[%emt 0:00:09]} c6 {[%emt 0:01:00]} 4. e3 {[%emt 0:00:24]} Bf5 {[%emt 0:00:45]} 5. Nf3 {[%emt 0:00:20]} e6 {[%emt 0:01:28]} 6. Ne5 {[%emt 0:00:22]} Nbd7 {[%emt 0:01:23]} 7. g4 {[%emt 0:01:13]} Nxe5 {[%emt 0:08:54]} 8. gxf5 {[%emt 0:03:07]} Ned7 {[%emt 0:06:32]} 9. fxe6 {[%emt 0:03:02]} fxe6 {[%emt 0:00:05]} 10. Bh3 {[%emt 0:01:02]} Qe7 {[%emt 0:01:03]} 11. Qe2 {[%emt 0:07:06]} Qf7 {[%emt 0:08:27]} 12. a3 {[%emt 0:09:42]} Be7 {[%emt 0:05:10]} 13. Rg1 {[%emt 0:04:32]} Nf8 {[%emt 0:10:28]} 14. O-O-O {[%emt 0:14:49]} Ng6 {[%emt 0:03:34]} 15. Bg3 {[%emt 0:06:29]} O-O {[%emt 0:02:00]} 16. e4 {[%emt 0:09:20]} dxe4 {[%emt 0:12:57]} 17. Nxe4 {[%emt 0:00:36]} Nxe4 {[%emt 0:00:26]} 18. Qxe4 {[%emt 0:00:08]} Nf4 {[%emt 0:09:19]} 19. Bxf4 {[%emt 0:04:06]} Qxf4+ {[%emt 0:00:32]} 20. Qxf4 {[%emt 0:00:17]} Rxf4 {[%emt 0:00:08]} 21. Bxe6+ {[%emt 0:00:14]} Kh8 {[%emt 0:00:24]} 22. Rgf1 {[%emt 0:01:47]} Raf8 {[%emt 0:01:27]} 23. d5 {[%emt 0:04:06]} cxd5 {[%emt 0:01:28]} 24. Rxd5 {[%emt 0:02:51]} Rxf2 {[%emt 0:01:34]} 25. Rxf2 {[%emt 0:04:25]} Rxf2 {[%emt 0:00:06]} 26. Rd7 {[%emt 0:00:27]} Bg5+ {[%emt 0:00:49]} 27. Kb1 {[%emt 0:00:27]} Rxh2 {[%emt 0:03:14]} 28. Rxb7 {[%emt 0:00:13]} g6 {[%emt 0:02:15]} 29. Rxa7 {[%emt 0:00:26]} Rh1+ {[%emt 0:01:17]} 30. Ka2 {[%emt 0:00:06]} Re1 {[%emt 0:00:55]} 31. Bc4 {[%emt 0:01:27]} h5 {[%emt 0:01:55]} 32. Ra6 {[%emt 0:00:48]} Kg7 {[%emt 0:00:50]} 33. Bd3 {[%emt 0:00:11]} Bf6 {[%emt 0:00:37]} 34. c4 {[%emt 0:02:57]} h4 {[%emt 0:00:48]} 35. c5 {[%emt 0:01:26]} h3 {[%emt 0:00:49]} 36. Bc4 {[%emt 0:00:52]} Rc1 {[%emt 0:01:42]} 37. Ra7+ {[%emt 0:03:41]} Kh6 {[%emt 0:03:34]} 38. Bg8 {[%emt 0:00:54]} Bg7 {[%emt 0:00:19]} 39. Be6 {[%emt 0:00:51]} h2 {[%emt 0:00:32]} 40. Bd5 {[%emt 0:00:09]} Rxc5 {[%emt 0:00:17]} 41. Be4 {[%emt 0:00:23]} Rc1 {[%emt 0:01:43]} 42. Ra6 {[%emt 0:01:16]} Rg1 {[%emt 0:00:20]} 43. a4 {[%emt 0:01:25]} h1=Q {[%emt 0:00:36]} 44. Bxh1 {[%emt 0:00:05]} Rxh1 {[%emt 0:00:06]} 45. Re6 {[%emt 0:02:16]} Rh4 {[%emt 0:01:31]} 46. Ra6 {[%emt 0:01:49]} Rb4 {[%emt 0:00:43]} 47. b3 {[%emt 0:00:15]} Kh5 {[%emt 0:02:12]} 48. Ra7 {[%emt 0:11:33]} Bd4 {[%emt 0:06:27]} 49. Rh7+ {[%emt 0:00:00]} Kg4 {[%emt 0:00:00]} 50. Rc7 {[%emt 0:00:00]} g5 {[%emt 0:00:00]} 51. Ka3 {[%emt 0:00:00]} Rb8 {[%emt 0:00:00]} 52. Rc4 {[%emt 0:00:00]} Rd8 {[%emt 0:00:00]} 53. a5 {[%emt 0:00:00]} Kf3 {[%emt 0:00:00]} 54. Rc7 {[%emt 0:00:00]} g4 {[%emt 0:00:00]} 55. Rf7+ {[%emt 0:00:00]} Ke2 {[%emt 0:00:00]} 56. Re7+ {[%emt 0:00:00]} Kf1 {[%emt 0:00:00]} 57. Rf7+ {[%emt 0:00:00]} Bf2 {[%emt 0:00:00]} 58. Rg7 {[%emt 0:00:00]} g3 {[%emt 0:00:00]} 59. b4 {[%emt 0:00:00]} g2 {[%emt 0:00:00]} 60. Rxg2 {[%emt 0:00:00]} Kxg2 {[%emt 0:00:00]} 61. b5 {[%emt 0:00:00]} Ra8 {[%emt 0:00:24]} 62. Ka4 {[%emt 0:00:00]} Kf3 {[%emt 0:00:19]} 63. a6 {[%emt 0:00:06]} Bb6 {[%emt 0:00:04]} 0-1

[Event "French-ch U16-U18 2024"]
[Site "Agen"]
[Date "2024.04.18"]
[Round "6.13"]
[White "Hamm, Gabrielle"]
[Black "Grimault, Leane"]
[Result "0-1"]
[ECO "B07"]
[WhiteElo "1797"]
[BlackElo "1930"]
[Annotator "TA"]
[PlyCount "64"]
[EventDate "2024.04.14"]
[EventType "swiss"]
[EventCountry "FRA"]
[SourceTitle "playchess.com"]
[Source "ChessBase"]
[SourceQuality "1"]
[TimeControl "5400+30"]

{[%evp 14,64,51,62,113,112,120,87,133,55,70,0,75,-127,118,110,89,39,58,0,0,-44,29,27,34,-25,-35,-31,200,0,260,-267,-127,-397,-277,-582,-431,-395,-410,-1338,-1248,-29991,-29992,-29993,-29982,-2946,-1568,-1563,-1509,-29988,-959,-29989,-29990]} 1. e4 {[%emt 0:00:03]} g6 {[%emt 0:06:10]} 2. d4 {[%emt 0:00:16]} Bg7 {[%emt 0:00:16]} 3. Nc3 {[%emt 0:00:20]} d6 {[%emt 0:00:30]} 4. Be3 {[%emt 0:00:36]} Nf6 {[%emt 0:00:28]} 5. Qd2 {[%emt 0:00:22]} c6 {[%emt 0:00:16]} 6. O-O-O {[%emt 0:07:14]} b5 {[%emt 0:01:42]} 7. f3 {[%emt 0:01:22]} O-O {[%emt 0:02:40]} 8. Bh6 {[%emt 0:00:16]} Qc7 {[%emt 0:03:22]} (8... Qa5 $14) 9. h4 $16 {[%emt 0:02:24]} e5 {[%emt 0:02:35]} 10. Nge2 {[%emt 0:10:37]} Nbd7 {[%emt 0:07:54]} (10... Bxh6 $142 11. Qxh6 Nbd7) 11. g4 {[%emt 0:11:31]} (11. Bxg7 $16 Kxg7 12. a3) 11... Nb6 {[%emt 0:07:50] Hoping for ...Nc4.} 12. h5 {[%emt 0:01:29]} (12. Ng3 $14) 12... b4 {[%emt 0:02:25]} (12... Nc4 $11 {keeps the balance.} 13. Qg5 Nxe4 14. Nxe4 f6 15. Bxg7 fxg5 16. Bxf8 Kxf8) 13. Nb1 $2 {[%emt 0:08:28]} (13. Bxg7 $16 Kxg7 14. Nb1 (14. hxg6 fxg6 15. Qh6+ Kg8 $15)) 13... a5 $2 {[%emt 0:02:03]} (13... Nxe4 $17 14. fxe4 Nc4) 14. Bxg7 {[%emt 0:03:53]} Kxg7 {[%emt 0:00:45]} 15. hxg6 {[%emt 0:00:19]} (15. Ng3 $16) 15... fxg6 $14 {[%emt 0:00:10]} 16. Qh6+ {[%emt 0:00:21]} (16. dxe5 $14 dxe5 17. Ng3 (17. Qh6+ Kg8 $11)) 16... Kg8 $11 {[%emt 0:00:14]} 17. Ng3 {[%emt 0:04:44]} Be6 {[%emt 0:06:07]} ({Black should try} 17... exd4 $15 18. g5 Ne8) 18. dxe5 {[%emt 0:20:04]} dxe5 {[%emt 0:01:45]} 19. Rd2 {[%emt 0:02:02]} ({Better is} 19. Nf5 $14) 19... Bxa2 {[%emt 0:03:38] aiming for ...a4.} 20. Rdh2 $1 {[%emt 0:00:40]} Rf7 $2 {[%emt 0:01:44] [#] Active counter play!} (20... Ra7 $15 {keeps the upper hand.} 21. Qe3 Rf7) 21. Nd2 $2 {[%emt 0:07:30]} (21. g5 $1 $18 {[%cal Rg5f6]}) 21... Be6 $2 {[%emt 0:02:03][%mdl 8192] [#]} ({Reject} 21... a4 $6 22. g5 Ne8 23. Qxg6+ Rg7 (23... hxg6 24. Rh8+ Kg7 25. R1h7#) 24. Qh6 $16) (21... Nfd7 $11) 22. Nb3 $4 {[%emt 0:01:31][%mdl 8192]} (22. g5 $1 $18 {[%cal Rg5f6] is the narrow road to win.} a4 23. gxf6) 22... c5 {[%emt 0:00:11]} (22... Bxg4 $19 23. Be2 (23. fxg4 $2 {loses.} Nxg4 24. Qh3 Nxh2 $19) 23... a4 24. fxg4 axb3 25. cxb3 Qc8) 23. Qe3 {[%emt 0:00:33][%mdl 8192]} (23. g5 $17 a4 24. Na1) 23... Bxb3 {[%emt 0:03:33]} 24. Qxb3 {[%emt 0:01:10]} (24. cxb3 {is more resistant.} a4 25. Kb1) 24... c4 {[%emt 0:01:10]} 25. Qe3 {[%emt 0:00:09]} a4 {[%emt 0:00:19]} 26. g5 {[%emt 0:02:41] [#]} (26. Kb1 $142) 26... a3 $1 $19 {[%emt 0:03:13]} 27. Kb1 {[%emt 0:03:15]} (27. bxa3 Rxa3) 27... axb2 {[%emt 0:00:39]} 28. Kxb2 {[%emt 0:01:18]} Qa7 {[%emt 0:00:51][%csl Ga8][%cal Ra7a1]} 29. Kc1 {[%emt 0:00:39]} Qa1+ {[%emt 0:03:05]} 30. Kd2 {[%emt 0:00:08]} Rd8+ {[%emt 0:00:44]} 31. Ke2 {[%emt 0:02:10]} Qd1+ {[%emt 0:00:13]} 32. Kf2 {[%emt 0:00:11]} Ng4+ {[%emt 0:00:08] Weighted Error Value: White=1.25/Black=0.88.  Loses game:     	White=1     	Black=2      Missed win:     	White=2     	---        Mistake:       	White=8     	Black=5      Inaccurate:     	White=2     	Black=1      OK:         	White=3     	Black=4      Best:        	---       	Black=1      Strong:       	White=1     	---} (32... Qxc2+ 33. Kg1 Nfd5 34. exd5 Nxd5 35. Qc5 $17) 0-1

[Event "French-ch U16-U18 2024"]
[Site "Agen"]
[Date "2024.04.18"]
[Round "6.14"]
[White "Naville, Lea"]
[Black "Diez, Agathe"]
[Result "0-1"]
[ECO "D37"]
[WhiteElo "1745"]
[BlackElo "1954"]
[Annotator "TA"]
[PlyCount "66"]
[EventDate "2024.04.14"]
[EventType "swiss"]
[EventCountry "FRA"]
[SourceTitle "playchess.com"]
[Source "ChessBase"]
[SourceQuality "1"]
[TimeControl "5400+30"]

{[%evp 13,66,2,0,0,0,2,9,7,12,8,11,5,11,0,12,0,0,5,14,0,7,3,0,10,16,0,17,15,15,15,15,0,0,0,42,0,10,0,0,0,0,0,54,39,52,40,52,0,0,0,44,0,0,0,48]} 1. d4 {[%emt 0:00:05]} d5 {[%emt 0:00:08]} 2. c4 {[%emt 0:00:16]} e6 {[%emt 0:00:08]} 3. Nc3 {[%emt 0:00:21]} Be7 {[%emt 0:00:55]} 4. Nf3 {[%emt 0:00:45]} Nf6 {[%emt 0:00:18]} 5. Bf4 {[%emt 0:00:46]} O-O {[%emt 0:00:59]} 6. e3 {[%emt 0:00:56]} Nbd7 {[%emt 0:02:25]} 7. c5 {[%emt 0:01:27]} Nh5 {[%emt 0:00:36]} 8. a3 {[%emt 0:02:38]} Nxf4 {[%emt 0:03:38]} 9. exf4 {[%emt 0:00:44]} b6 {[%emt 0:01:11]} 10. b4 {[%emt 0:00:24]} c6 {[%emt 0:00:32][%cal Rb6c5] Dodges Bb5} 11. Bd3 {[%emt 0:07:10]} a5 {[%emt 0:00:45]} 12. O-O {[%emt 0:00:51]} Ba6 {[%emt 0:01:47]} 13. g3 {[%emt 0:04:50]} Bf6 {[%emt 0:03:45]} 14. Qc2 {[%emt 0:08:10]} Bxd3 {[%emt 0:04:14]} 15. Qxd3 {[%emt 0:00:30]} Qc7 {[%emt 0:02:46]} 16. Rfe1 {[%emt 0:05:42]} Rfb8 {[%emt 0:06:44]} 17. Reb1 {[%emt 0:13:12]} g6 {[%emt 0:10:09]} 18. Ne5 {[%emt 0:01:37]} Bg7 {[%emt 0:06:36]} 19. Na4 {[%emt 0:05:58] [#] Threatens to win with Nxd7.} Bxe5 {[%emt 0:10:38]} 20. fxe5 {[%emt 0:01:21]} axb4 {[%emt 0:00:21]} 21. axb4 {[%emt 0:01:53]} bxc5 {[%emt 0:04:09]} 22. bxc5 {[%emt 0:01:09]} Rxb1+ {[%emt 0:04:04]} 23. Qxb1 {[%emt 0:00:52]} Rb8 {[%emt 0:00:15] Repels Nb6} 24. Qd3 {[%emt 0:04:06]} Qa5 {[%emt 0:06:17]} 25. Qc3 {[%emt 0:07:48]} Rb4 {[%emt 0:03:50]} 26. Qe1 {[%emt 0:06:59][%cal Oa4b6] [#] Nb6! is the strong threat.} ({But not} 26. Nb6 $2 Rb1+ 27. Rxb1 Qxc3 $19) 26... Qb5 {[%emt 0:03:14]} 27. Nc3 {[%emt 0:01:02]} Qb7 {[%emt 0:01:46]} (27... Qc4 $11 28. Ra7 Rb3) 28. Qd2 {[%emt 0:01:29]} Kg7 {[%emt 0:04:10]} 29. Kg2 {[%emt 0:02:54]} h6 {[%emt 0:03:27]} 30. Na4 {[%emt 0:05:47]} (30. Ra2 $14) 30... Qb5 {[%emt 0:07:19]} 31. Nc3 {[%emt 0:01:04]} Rb2 {[%emt 0:01:51]} 32. Qd1 {[%emt 0:09:54]} Qc4 {[%emt 0:02:40]} 33. Rc1 {[%emt 0:00:09]} Rb4 {[%emt 0:00:29][%mdl 32768] Against Na4.   Weighted Error Value: White=0.12 (very precise) /Black=0.11 (very precise) .  Mistake:       	White=1     	Black=2      Inaccurate:     	White=2     	Black=2      OK:         	White=8     	Black=9     . Loss on time!?} (33... Qb4 $11) 0-1

[Event "French-ch U16-U18 2024"]
[Site "Agen"]
[Date "2024.04.18"]
[Round "6.15"]
[White "Yaghi, leen"]
[Black "Beil, Romane"]
[Result "1-0"]
[ECO "B01"]
[WhiteElo "1941"]
[BlackElo "1652"]
[Annotator "TA"]
[PlyCount "63"]
[EventDate "2024.04.14"]
[EventType "swiss"]
[EventCountry "FRA"]
[SourceTitle "playchess.com"]
[Source "ChessBase"]
[SourceQuality "1"]
[TimeControl "5400+30"]

{[%evp 11,63,52,50,50,68,56,96,98,102,75,103,93,91,79,100,83,93,89,154,124,135,126,126,121,179,106,124,18,128,62,194,191,194,110,125,120,138,89,410,396,587,564,1605,1105,29979,29980,29997,29993,29997,29998,29998,29993,29993,29992]} 1. e4 {[%emt 0:01:06][%cal Be2e4,Be4d5][%mdl 32]} d5 {[%emt 0:00:06]} 2. exd5 {[%emt 0:00:15]} Nf6 {[%emt 0:00:07]} 3. d4 {[%emt 0:00:19]} Bg4 {[%emt 0:00:06]} 4. Bb5+ {[%emt 0:00:26]} Nbd7 {[%emt 0:01:34]} 5. Be2 {[%emt 0:00:25]} Bxe2 {[%emt 0:00:10]} 6. Qxe2 {[%emt 0:00:17]} Nxd5 {[%emt 0:00:42]} 7. Nf3 {[%emt 0:00:33]} g6 {[%emt 0:01:33]} 8. c4 {[%emt 0:03:26]} N5b6 {[%emt 0:00:33]} 9. Nc3 {[%emt 0:00:57] White is better.} Bg7 {[%emt 0:01:22]} 10. O-O {[%emt 0:04:12]} Nf6 {[%emt 0:05:23]} 11. Re1 {[%emt 0:07:42]} O-O {[%emt 0:07:51]} 12. Bf4 {[%emt 0:05:21]} ({Don't play} 12. Qxe7 $6 Nxc4 13. Qc5 Nb6 $11) 12... Nh5 {[%emt 0:10:56]} 13. Be5 {[%emt 0:11:32]} Bxe5 {[%emt 0:06:33]} 14. dxe5 {[%emt 0:02:22] And now Rad1 would win.} e6 {[%emt 0:04:19]} (14... Ng7 $142) 15. Ne4 {[%emt 0:05:02]} Qe7 {[%emt 0:05:01]} 16. b3 {[%emt 0:14:47]} Nd7 {[%emt 0:04:46]} 17. Qe3 {[%emt 0:01:32]} Ng7 {[%emt 0:10:21]} (17... f6 $16 18. exf6 Nhxf6 19. Nxf6+ Rxf6) 18. Qh6 {[%emt 0:04:10]} (18. Rad1 $18 {[%cal Od1d7] Strongly threatening Rxd7!} Nh5 19. h3) 18... Nf5 {[%emt 0:01:20]} 19. Qh3 {[%emt 0:00:16]} (19. Qf4 $16 {Hoping for Rad1.} f6 20. exf6 Nxf6 21. Rad1) 19... Kg7 {[%emt 0:04:29]} (19... h5 $1 $11) 20. Rad1 {[%emt 0:04:54]} (20. g4 $16 Nh6 21. Nf6) 20... Rh8 {[%emt 0:04:53]} ({Black should try} 20... h5 $14) 21. g4 $18 {[%emt 0:07:23]} Nh6 {[%emt 0:00:40]} 22. g5 {[%emt 0:00:47]} ({Better is} 22. Re3 $18) 22... Nf5 $16 {[%emt 0:04:08]} 23. Nf6 $40 {[%emt 0:00:18][%mdl 128] White wants a kill.} Rad8 {[%emt 0:01:54]} 24. Nd4 $1 {[%emt 0:01:22] Threatening mate with Nxf5+. White is much more active.} h6 $2 {[%emt 0:03:39][%mdl 8192] [#]} (24... h5 $16) 25. Nxf5+ $1 $18 {[%emt 0:07:58]} exf5 {[%emt 0:00:38]} (25... gxf5 {was worth a try.} 26. Qh5 Kf8) 26. Qc3 {[%emt 0:03:07]} Nc5 {[%emt 0:09:37]} 27. Rxd8 {[%emt 0:00:40]} Qxd8 {[%emt 0:00:45] [#]} 28. e6 $1 {[%emt 0:00:54][%mdl 512] White mates.} Ne4 {[%emt 0:08:57]} (28... Nxe6 29. Rxe6) 29. Nxe4+ {[%emt 0:00:46]} Kf8 {[%emt 0:01:27][%cal Bg7f8,Bf8e7,Be7d8][%mdl 32]} 30. Qxh8+ {[%emt 0:00:09]} Ke7 {[%emt 0:00:05]} 31. Qxd8+ {[%emt 0:00:16]} Kxd8 {[%emt 0:00:07]} 32. gxh6 {[%emt 0:00:05] Weighted Error Value: White=0.20 (precise) /Black=0.84.  Loses game:     	---       	Black=1      Mistake:       	White=4     	Black=5      Inaccurate:     	White=1     	Black=4      OK:         	White=4     	Black=4      Best:        	White=2     	Black=1      Strong:       	White=2     	---} 1-0

[Event "French-ch U16-U18 2024"]
[Site "Agen"]
[Date "2024.04.18"]
[Round "6.16"]
[White "Razafindratsima, Timothe"]
[Black "Makkar, Rajat"]
[Result "1/2-1/2"]
[ECO "C42"]
[WhiteElo "2438"]
[BlackElo "2452"]
[Annotator "TA"]
[PlyCount "108"]
[EventDate "2024.04.14"]
[EventType "swiss"]
[EventCountry "FRA"]
[SourceTitle "playchess.com"]
[Source "ChessBase"]
[SourceQuality "1"]
[TimeControl "5400+30"]

{[%evp 32,108,0,-21,0,-56,-59,-60,-54,-62,-35,-56,-27,-93,-93,-104,-20,-20,-17,-13,-12,-15,-15,-11,-9,-10,0,0,0,0,0,0,0,0,0,0,0,0,0,0,0,0,0,0,0,0,0,0,0,0,0,0,0,0,0,0,0,0,0,0,0,0,0,0,0,0,0,0,0,0,0,0,0,0,0,0,0,0,0]} 1. e4 {[%emt 0:00:03]} e5 {[%emt 0:00:29]} 2. Nf3 {[%emt 0:00:10]} Nf6 {[%emt 0:00:09]} 3. Nxe5 {[%emt 0:00:17]} d6 {[%emt 0:00:12]} 4. Nf3 {[%emt 0:00:05]} Nxe4 {[%emt 0:00:09]} 5. Nc3 {[%emt 0:00:30]} Nxc3 {[%emt 0:00:13]} 6. dxc3 {[%emt 0:00:04]} Be7 {[%emt 0:00:07]} 7. Be3 {[%emt 0:00:51]} Nd7 {[%emt 0:00:22]} 8. Qd2 {[%emt 0:00:27] C42: Petroff Defence: 3 Nxe5 and unusual White 3rd moves.} Ne5 {[%emt 0:00:13]} 9. O-O-O {[%emt 0:02:49]} Nxf3 {[%emt 0:00:34] 9...0-0 is not played anymore.} 10. gxf3 {[%emt 0:00:02]} Be6 {[%emt 0:00:11]} 11. Rg1 {[%emt 0:06:54]} g6 {[%emt 0:00:11]} 12. Bg5 $146 {[%emt 0:13:13]} ({Predecessor:} 12. a3 a6 13. Qd4 Kd7 14. Bc4 Bf6 15. Bxe6+ fxe6 16. Qe4 b5 17. Bf4 e5 18. Bxe5 Bxe5 19. Qxe5 {½-½ Bruzon Batista,L (2643)-Granda Zuniga,J (2662) ESP-chT CECLUB Div1 2017 (6.2)}) 12... Bxg5 {[%emt 0:11:01]} 13. Rxg5 {[%emt 0:00:06]} h6 {[%emt 0:20:13]} 14. Qd4 {[%emt 0:06:17]} hxg5 {[%emt 0:10:31]} 15. Qxh8+ {[%emt 0:00:04]} Ke7 {[%emt 0:03:17]} 16. Qd4 {[%emt 0:07:51]} a5 {[%emt 0:05:41]} (16... Bxa2 $2 17. b3 Kf8 $18 (17... Qd7 $2 $18)) ({Black should try} 16... Qh8 $15) 17. Qe4 {[%emt 0:24:33]} c6 {[%emt 0:08:27]} 18. Qe3 {[%emt 0:07:08]} (18. Qd4 $11) 18... Kd7 $15 {[%emt 0:02:07]} 19. f4 {[%emt 0:12:45]} gxf4 $1 {[%emt 0:02:48]} 20. Qxf4 {[%emt 0:00:01]} Qe7 {[%emt 0:01:28]} 21. c4 {[%emt 0:00:01]} b6 {[%emt 0:07:11]} 22. Re1 {[%emt 0:03:43]} (22. h4 $11 {remains equal.}) 22... Rh8 $17 {[%emt 0:03:06]} 23. Qe3 {[%emt 0:03:18] [#]} Kc7 {[%emt 0:04:20]} (23... Qd8 $1 $17 24. Rd1 Kc7 (24... Rxh2 $2 {is the wrong capture.} 25. Qe5 $18)) 24. Bh3 $1 $11 {[%emt 0:01:16]} Qf6 {[%emt 0:04:05]} ({Worse is} 24... Rxh3 25. Qxh3 Qg5+ 26. Qe3 $16) 25. Bxe6 {[%emt 0:10:32]} Re8 {[%emt 0:00:47]} 26. c5 {[%emt 0:00:00]} (26. Qg3 {simplifies} Rxe6 27. Rxe6 Qxe6 28. b3) 26... dxc5 {[%emt 0:05:04]} (26... Qxe6 27. cxb6+ Kb7 28. a4 $15 (28. Qxe6 fxe6 29. Rg1 Rf8 $14)) 27. Qg3+ {[%emt 0:00:00]} Kb7 {[%emt 0:00:02]} 28. Qd6 {[%emt 0:00:00]} Rxe6 {[%emt 0:00:13]} 29. Qd7+ {[%emt 0:00:00]} Kb8 {[%emt 0:01:58]} 30. Rxe6 {[%emt 0:00:00]} Qxe6 {[%emt 0:01:04]} 31. Qxe6 {[%emt 0:00:00]} fxe6 {[%emt 0:00:02]} 32. Kd2 {[%emt 0:00:00]} Kc7 {[%emt 0:00:52]} 33. Ke3 {[%emt 0:00:00]} e5 {[%emt 0:01:01]} 34. Ke4 {[%emt 0:03:29]} Kd6 {[%emt 0:00:04]} 35. c4 {[%emt 0:00:50]} a4 {[%emt 0:01:26]} 36. h4 {[%emt 0:00:34]} Ke6 {[%emt 0:00:31]} 37. f4 {[%emt 0:00:30]} exf4 {[%emt 0:00:40]} 38. Kxf4 {[%emt 0:00:02]} Kf6 {[%emt 0:00:29]} 39. Kg4 {[%emt 0:00:47]} Kg7 {[%emt 0:01:30]} 40. Kg5 {[%emt 0:00:23]} Kf7 {[%emt 0:00:09]} 41. Kg4 {[%emt 0:00:31]} Kg8 {[%emt 0:01:21]} 42. h5 {[%emt 0:00:45]} gxh5+ {[%emt 0:00:16]} 43. Kxh5 {[%emt 0:00:01]} Kf7 {[%emt 0:00:23]} 44. Kg5 {[%emt 0:00:05]} Ke6 {[%emt 0:00:05]} 45. Kf4 {[%emt 0:00:02]} Kd6 {[%emt 0:00:02]} 46. Kf5 {[%emt 0:00:37]} Ke7 {[%emt 0:02:22]} (46... b5 $5 47. b3 $8 Ke7 $11) 47. Ke5 {[%emt 0:00:24]} Kd7 {[%emt 0:00:04]} 48. Kf5 {[%emt 0:01:13]} Kd6 {[%emt 0:00:09]} 49. Kf6 {[%emt 0:00:18]} b5 {[%emt 0:02:11]} 50. b3 {[%emt 0:00:04]} Kd7 {[%emt 0:00:31]} (50... a3 $5) 51. Kf5 $1 {[%emt 0:00:31]} Kd6 {[%emt 0:00:38]} 52. Kf6 $1 {[%emt 0:00:05]} Kd7 {[%emt 0:00:02]} (52... a3 $5) 53. Kf5 $1 {[%emt 0:00:03]} Kd6 {[%emt 0:00:02]} 54. Kf6 {[%emt 0:00:04]} Kd7 {[%emt 0:00:33]} (54... a3 $5) 1/2-1/2

[Event "French-ch U16-U18 2024"]
[Site "Agen"]
[Date "2024.04.18"]
[Round "6.17"]
[White "Pichon, Ewen"]
[Black "Belkaid, Sohan"]
[Result "0-1"]
[ECO "D35"]
[WhiteElo "2252"]
[BlackElo "2412"]
[Annotator "TA"]
[PlyCount "94"]
[EventDate "2024.04.14"]
[EventType "swiss"]
[EventCountry "FRA"]
[SourceTitle "playchess.com"]
[Source "ChessBase"]
[SourceQuality "1"]
[TimeControl "5400+30"]

{[%evp 12,94,11,20,31,26,33,30,16,17,23,21,11,12,18,0,0,-29,-29,-22,-22,-35,-27,-43,-39,-31,-35,-38,-36,-27,-7,-8,-5,-30,-4,-9,-5,-7,-6,-6,-6,-6,-6,-7,-14,-8,-11,-29,-29,-36,-31,-36,-27,-20,-25,-27,-27,-29,-29,-88,-62,-95,-93,-84,-74,-112,-81,-333,-325,-477,-471,-512,-537,-863,-858,-748,-584,-710,-544,-29990,-29991,-29991,-29992,-29992,-29993]} 1. d4 {[%emt 0:00:27]} d5 {[%emt 0:00:14]} 2. c4 {[%emt 0:01:00]} e6 {[%emt 0:00:11]} 3. Nc3 {[%emt 0:00:11]} Nf6 {[%emt 0:00:21]} 4. cxd5 {[%emt 0:00:30]} exd5 {[%emt 0:00:10]} 5. Bg5 {[%emt 0:00:07]} c6 {[%emt 0:00:16]} 6. e3 {[%emt 0:00:05]} h6 {[%emt 0:00:24]} 7. Bh4 {[%emt 0:02:26]} Be6 {[%emt 0:00:18]} 8. Bd3 {[%emt 0:00:35]} Nbd7 {[%emt 0:00:19]} 9. Nge2 {[%emt 0:01:09]} g5 {[%emt 0:00:27] White has an edge.} 10. Bg3 {[%emt 0:00:07]} Nh5 $1 {[%emt 0:00:13]} 11. h3 {[%emt 0:04:08]} Nxg3 {[%emt 0:04:24]} 12. Nxg3 {[%emt 0:00:36]} Nf6 {[%emt 0:04:56]} 13. a3 {[%emt 0:06:40]} h5 {[%emt 0:08:05]} 14. Qc2 {[%emt 0:07:08]} h4 {[%emt 0:32:24]} 15. Nf5 {[%emt 0:06:19]} Qc7 {[%emt 0:01:03]} 16. O-O-O {[%emt 0:06:30]} O-O-O {[%emt 0:00:23]} 17. Kb1 {[%emt 0:04:58]} Kb8 {[%emt 0:00:52]} 18. Rc1 {[%emt 0:10:24]} Qa5 {[%emt 0:04:27]} 19. f3 {[%emt 0:04:29]} Nh5 {[%emt 0:01:53]} 20. Rhe1 {[%emt 0:01:27]} Bxf5 {[%emt 0:12:17]} 21. Bxf5 {[%emt 0:00:05]} Ng3 {[%emt 0:00:13]} 22. Bd3 {[%emt 0:03:37]} Rh6 {[%emt 0:00:28][%cal Bh8h6,Bh6e6,Be6e7][%mdl 32]} 23. Ne2 {[%emt 0:03:55]} Bd6 {[%emt 0:12:35]} 24. Nxg3 {[%emt 0:00:21]} Bxg3 {[%emt 0:01:09]} 25. Re2 {[%emt 0:00:10]} Re6 {[%emt 0:00:08]} 26. Bf5 {[%emt 0:01:58]} Re7 {[%emt 0:01:16]} 27. Qb3 {[%emt 0:02:54]} Qb6 {[%emt 0:02:07]} 28. Qxb6 {[%emt 0:01:20]} axb6 {[%emt 0:00:07]} 29. Rd1 {[%emt 0:01:41] White is weak on the dark squares} b5 {[%emt 0:08:49]} 30. e4 {[%emt 0:09:49]} dxe4 {[%emt 0:00:07]} 31. fxe4 {[%emt 0:01:13]} c5 {[%emt 0:00:22]} 32. Red2 {[%emt 0:01:13]} Bf4 {[%emt 0:00:08]} 33. Rd3 {[%emt 0:00:02]} c4 {[%emt 0:00:09]} 34. Rf3 {[%emt 0:00:06]} Be5 {[%emt 0:00:11]} 35. d5 {[%emt 0:00:09]} (35. Rf2 $11) 35... Rd6 {[%emt 0:01:11]} 36. Rf2 {[%emt 0:13:40]} Kc7 {[%emt 0:01:41] Black is more active.} 37. Rc2 {[%emt 0:01:59]} Rb6 {[%emt 0:00:09]} 38. Ka2 {[%emt 0:05:09]} Kd6 {[%emt 0:00:09]} 39. Rdd2 $2 {[%emt 0:00:22][%mdl 8192] [#] White does not recover from this.} (39. b3 $17) 39... Rc7 $1 $19 {[%emt 0:00:20] aiming for ...b4.} 40. Bg4 {[%emt 0:00:38]} (40. b4 $142) 40... b4 {[%emt 0:00:17]} 41. axb4 {[%emt 0:00:45]} Rxb4 {[%emt 0:00:13]} 42. Bf3 {[%emt 0:00:34]} b5 {[%emt 0:00:21]} 43. Kb1 {[%emt 0:00:16]} Ra7 {[%emt 0:02:07] [#] Hoping for ...Rba4.} 44. Re2 {[%emt 0:00:33]} c3 {[%emt 0:01:09][%cal Oa7a5]} 45. Rc1 {[%emt 0:00:39]} cxb2 {[%emt 0:00:40] Black mates.} 46. Rc6+ {[%emt 0:00:02]} Ke7 {[%emt 0:00:15]} 47. d6+ {[%emt 0:00:17]} Kf8 {[%emt 0:00:29] Weighted Error Value: White=0.56/Black=0.08 (flawless) .  Loses game:     	White=1     	---        Mistake:       	White=2     	---        Inaccurate:     	White=5     	Black=1      OK:         	White=11    	Black=15     Best:        	---       	Black=1      Strong:       	---       	Black=2} (47... Bxd6 $2 48. Rxb2 Rc4 49. Rxc4 bxc4 50. Ra2 $19) 0-1